bitfinex/quotes_BTCUSD_20241123
["timestamp","ask_amount","ask_price","bid_price","bid_amount"]
[1732380007657,0.023,97644.0,97631.0,0.09102104]
[1732380007872,0.023,97644.0,97621.0,0.22754973]
[1732380007873,0.023,97644.0,97627.0,0.09102104]
[1732380008097,0.023,97639.0,97618.0,0.09102104]
[1732380008313,0.105,97636.0,97580.0,0.0751]
[1732380008782,0.105,97636.0,97583.0,0.0282]
[1732380009023,0.2,97623.0,97566.0,0.0751]
[1732380009240,0.2,97623.0,97508.0,0.0966]
[1732380009241,0.37361427,97623.0,97553.0,0.0751]
[1732380009534,0.37361427,97623.0,97606.0,0.09106386]
[1732380009535,0.2,97615.0,97606.0,0.09106386]
[1732380009779,0.2,97606.0,97604.0,0.09106386]
[1732380009998,0.2,97606.0,97597.0,0.18212772]
[1732380009999,0.023,97605.0,97601.0,0.09106386]
[1732380010246,0.023,97605.0,97595.0,0.09106386]
[1732380010476,0.023,97605.0,97585.0,0.09106386]
[1732380010733,0.023,97605.0,97579.0,0.09106386]
[1732380010986,0.023,97605.0,97557.0,0.27319158]
[1732380010987,0.023,97605.0,97590.0,0.09106386]
[1732380011175,0.25061014,97600.0,97589.0,0.24106386]
[1732380011422,0.25061014,97600.0,97591.0,0.09106386]
[1732380011712,0.25061014,97600.0,97591.0,0.15]
[1732380011911,0.25061014,97600.0,97589.0,0.15]
[1732380012134,0.15061427,97599.0,97589.0,0.15]
[1732380012348,0.15061427,97599.0,97589.0,0.24106386]
[1732380012349,0.023,97596.0,97589.0,0.24106386]
[1732380012559,0.2,97592.0,97591.0,0.09106386]
[1732380012770,0.2,97592.0,97581.0,0.09106386]
[1732380012771,0.2,97590.0,97581.0,0.09106386]
[1732380012986,0.023,97589.0,97579.0,0.09106386]
[1732380013206,0.023,97591.0,97579.0,0.09106386]
[1732380013526,0.023,97591.0,97560.0,0.27319158]
[1732380013527,0.2,97592.0,97582.0,0.09106386]
[1732380013693,0.2,97592.0,97582.0,0.09097386]
[1732380013694,0.023,97591.0,97582.0,0.09097386]
[1732380013974,0.023,97591.0,97573.0,0.22765965]
[1732380013975,0.082,97597.0,97580.0,0.13658242]
[1732380014198,0.082,97597.0,97584.0,0.15]
[1732380014418,0.082,97612.0,97586.0,0.15]
[1732380014635,0.082,97612.0,97566.0,0.0751]
[1732380014636,0.082,97612.0,97588.0,0.15]
[1732380014911,0.082,97612.0,97572.0,0.22765965]
[1732380014912,0.082,97612.0,97590.0,0.15]
[1732380015130,0.082,97612.0,97592.0,0.15]
[1732380015346,0.082,97612.0,97592.0,0.25201427]
[1732380015784,0.082,97612.0,97566.0,0.07108181]
[1732380016004,0.082,97612.0,97569.0,0.10201427]
[1732380016444,0.082,97612.0,97587.0,0.1366063]
[1732380016703,0.082,97612.0,97588.0,0.23862057]
[1732380016927,0.082,97612.0,97588.0,0.10201427]
[1732380017144,0.082,97612.0,97593.0,0.1366063]
[1732380017423,0.082,97612.0,97590.0,0.1366063]
[1732380017632,0.082,97612.0,97588.0,0.10201427]
[1732380017633,0.082,97612.0,97588.0,0.23862057]
[1732380017848,0.082,97612.0,97592.0,0.15]
[1732380018591,0.023,97610.0,97589.0,0.1366063]
[1732380018843,0.023,97610.0,97569.0,0.2732126]
[1732380018844,0.023,97608.0,97590.0,0.15]
[1732380019762,0.25061014,97600.0,97582.0,0.13663779]
[1732380020013,0.25061014,97600.0,97583.0,0.15]
[1732380020525,0.023,97595.0,97573.0,0.13663779]
[1732380020741,0.023,97595.0,97568.0,0.22772965]
[1732380020742,0.25061014,97583.0,97568.0,0.13663779]
[1732380021008,0.25061014,97583.0,97537.0,0.0751]
[1732380021009,0.25061014,97583.0,97567.0,0.13663779]
[1732380021265,0.023,97581.0,97564.0,0.13663779]
[1732380021491,0.023,97581.0,97560.0,0.13667419]
[1732380021720,0.25061014,97570.0,97560.0,0.13667419]
[1732380021948,0.25061014,97570.0,97498.0,0.002]
[1732380021949,0.25061014,97570.0,97550.0,0.22772965]
[1732380022215,0.25061014,97570.0,97551.0,0.10201427]
[1732380022933,0.25061014,97570.0,97552.0,0.15]
[1732380023145,0.25061014,97570.0,97554.0,0.15]
[1732380024264,0.25061014,97570.0,97551.0,0.09110513]
[1732380024735,0.25061014,97570.0,97547.0,0.09110513]
[1732380025017,0.2,97579.0,97549.0,0.15]
[1732380025240,0.12501427,97578.0,97550.0,0.09110513]
[1732380025721,0.12501427,97578.0,97548.0,0.10201427]
[1732380025722,0.082,97582.0,97552.0,0.15]
[1732380025941,0.1272,97595.0,97558.0,0.09109823]
[1732380026163,0.1272,97595.0,97560.0,0.15]
[1732380026444,0.1272,97595.0,97559.0,0.1931125]
[1732380026445,0.1272,97595.0,97571.0,0.09109823]
[1732380026665,0.1272,97595.0,97576.0,0.09109823]
[1732380026913,0.1272,97595.0,97580.0,0.09109823]
[1732380027128,0.1272,97595.0,97578.0,0.24109823]
[1732380027129,0.25061014,97590.0,97578.0,0.24109823]
[1732380027352,0.25061014,97590.0,97578.0,0.15]
[1732380027805,0.25061014,97590.0,97573.0,0.09109823]
[1732380028025,0.25061014,97590.0,97535.0,0.40353671]
[1732380028026,0.55262441,97590.0,97570.0,0.09109823]
[1732380028259,0.023,97589.0,97568.0,0.09109823]
[1732380028480,0.023,97589.0,97566.0,0.09109823]
[1732380028767,0.023,97589.0,97560.0,0.15]
[1732380029102,0.023,97589.0,97560.0,0.25201427]
[1732380029575,0.023,97589.0,97562.0,0.15]
[1732380029805,0.2,97590.0,97564.0,0.15]
[1732380030059,0.2,97590.0,97566.0,0.15]
[1732380030316,0.16282199,97580.0,97566.0,0.15]
[1732380030577,0.16282199,97580.0,97553.0,0.09109823]
[1732380030578,0.2,97579.0,97553.0,0.09109823]
[1732380030811,0.16282199,97570.0,97551.0,0.09109823]
[1732380031039,0.2,97578.0,97551.0,0.09109823]
[1732380031040,0.023,97577.0,97555.0,0.09109823]
[1732380031302,0.023,97577.0,97556.0,0.09109823]
[1732380031764,0.16282199,97570.0,97556.0,0.09113546]
[1732380032258,0.16282199,97570.0,97560.0,0.09113546]
[1732380032489,0.023,97569.0,97561.0,0.09113546]
[1732380032762,0.023,97569.0,97559.0,0.15]
[1732380033378,0.023,97569.0,97560.0,0.0008589]
[1732380036858,0.2,97575.0,97560.0,0.0008589]
[1732380037098,0.0469,97576.0,97560.0,0.0008589]
[1732380037099,0.2469,97576.0,97560.0,0.0008589]
[1732380037560,0.0469,97576.0,97560.0,0.0008589]
[1732380037817,0.0469,97576.0,97562.0,0.15]
[1732380038079,0.0017178,97612.0,97562.0,0.15]
[1732380038080,0.1255,97595.0,97564.0,0.15]
[1732380038301,0.1255,97595.0,97569.0,0.09111663]
[1732380038543,0.1255,97595.0,97570.0,0.24111663]
[1732380038766,0.36282199,97590.0,97571.0,0.09111663]
[1732380038989,0.16282199,97590.0,97571.0,0.15]
[1732380039210,0.1255,97595.0,97573.0,0.15]
[1732380039728,0.0017178,97612.0,97579.0,0.09111663]
[1732380039729,0.0807,97611.0,97579.0,0.09111663]
[1732380039958,0.0807,97611.0,97582.0,0.09111663]
[1732380040193,0.0807,97611.0,97595.0,0.15]
[1732380040446,0.0017178,97612.0,97599.0,0.15]
[1732380040671,0.0017178,97612.0,97599.0,0.24111663]
[1732380040922,0.0017178,97612.0,97602.0,0.09111663]
[1732380041160,0.0017178,97612.0,97604.0,0.09111663]
[1732380041395,0.0017178,97612.0,97602.0,0.09111663]
[1732380041848,0.0017178,97612.0,97601.0,0.24111663]
[1732380042067,0.0017178,97612.0,97604.0,0.09111663]
[1732380042291,0.0017178,97612.0,97605.0,0.09111663]
[1732380042517,0.0017178,97612.0,97604.0,0.09111663]
[1732380042765,0.0017178,97612.0,97603.0,0.15]
[1732380043016,0.0017178,97612.0,97603.0,0.24111663]
[1732380043261,0.0017178,97612.0,97600.0,0.09111663]
[1732380043502,0.0017178,97612.0,97600.0,0.15]
[1732380043722,0.0017178,97612.0,97602.0,0.09111663]
[1732380043940,0.0017178,97612.0,97601.0,0.09111663]
[1732380044173,0.0017178,97612.0,97600.0,0.24111663]
[1732380044419,0.0017178,97612.0,97602.0,0.15]
[1732380044648,0.0017178,97612.0,97610.0,0.28667494]
[1732380044871,0.0017178,97612.0,97611.0,0.33223326]
[1732380045090,0.0469,97630.0,97612.0,0.15]
[1732380045314,0.0469,97630.0,97617.0,0.09101742]
[1732380045564,0.0469,97630.0,97616.0,0.15]
[1732380045565,0.0469,97630.0,97618.0,0.09101742]
[1732380046049,0.0469,97630.0,97623.0,0.09101742]
[1732380046278,0.2,97646.0,97621.0,0.15]
[1732380046279,0.0469,97646.0,97624.0,0.09101742]
[1732380046503,0.0469,97646.0,97627.0,0.09101742]
[1732380046723,0.0469,97646.0,97631.0,0.15]
[1732380046934,0.2,97656.0,97635.0,0.09101742]
[1732380047183,0.2,97657.0,97637.0,0.15]
[1732380047403,0.2,97656.0,97637.0,0.25201427]
[1732380048062,0.1276,97662.0,97637.0,0.25201427]
[1732380048063,0.2,97660.0,97637.0,0.25201427]
[1732380048274,0.2,97656.0,97637.0,0.25201427]
[1732380048490,0.2,97657.0,97638.0,0.0909808]
[1732380048711,0.2,97657.0,97639.0,0.15]
[1732380049146,0.2,97656.0,97639.0,0.15]
[1732380049815,0.1951,97656.0,97633.0,0.0909808]
[1732380050044,0.1951,97656.0,97635.0,0.15]
[1732380050268,0.1951,97656.0,97635.0,0.25201427]
[1732380051170,0.1951,97656.0,97631.0,0.0420031]
[1732380051393,0.1951,97656.0,97631.0,0.1920031]
[1732380051610,0.1951,97656.0,97631.0,0.15]
[1732380052340,0.1276,97662.0,97631.0,0.15]
[1732380052341,0.023,97652.0,97631.0,0.15]
[1732380052558,0.023,97652.0,97626.0,0.0909808]
[1732380052994,0.023,97652.0,97624.0,0.2409808]
[1732380053204,0.023,97652.0,97625.0,0.10201427]
[1732380053422,0.023,97652.0,97626.0,0.15]
[1732380054348,0.1951,97655.0,97627.0,0.10201427]
[1732380054567,0.1951,97655.0,97628.0,0.15]
[1732380054781,0.1951,97655.0,97629.0,0.10201427]
[1732380055003,0.1951,97655.0,97630.0,0.15]
[1732380055217,0.1951,97655.0,97632.0,0.15]
[1732380057487,0.1276,97662.0,97634.0,0.15]
[1732380057713,0.1276,97662.0,97622.0,0.13287206]
[1732380057714,0.0017186,97666.0,97641.0,0.15]
[1732380057941,0.0017186,97666.0,97640.0,0.16282199]
[1732380057942,0.0017186,97666.0,97643.0,0.15]
[1732380058167,0.0017186,97666.0,97645.0,0.15]
[1732380058390,0.0017186,97666.0,97647.0,0.15]
[1732380058624,0.0017186,97666.0,97649.0,0.15]
[1732380058886,0.0017178,97655.0,97651.0,0.15]
[1732380059112,0.0017186,97666.0,97653.0,0.15]
[1732380059332,0.0017186,97666.0,97653.0,0.25201427]
[1732380060878,0.0017186,97666.0,97654.0,0.10201427]
[1732380062443,0.0017186,97666.0,97651.0,0.04042006]
[1732380062892,0.0017186,97666.0,97630.0,0.16772199]
[1732380063124,0.0017186,97666.0,97635.0,0.10201427]
[1732380063361,0.2,97680.0,97635.0,0.10201427]
[1732380063362,0.1968198,97695.0,97681.0,0.5478]
[1732380063581,0.1968198,97695.0,97646.0,0.0049]
[1732380063582,0.1968198,97695.0,97669.0,0.16282199]
[1732380063807,0.1968198,97695.0,97670.0,0.10201427]
[1732380064075,0.1951,97694.0,97651.0,0.09086613]
[1732380064314,0.2762,97687.0,97652.0,0.10201427]
[1732380064544,0.2762,97687.0,97653.0,0.15]
[1732380064545,0.1951,97679.0,97653.0,0.15]
[1732380064767,0.1951,97679.0,97655.0,0.15]
[1732380065453,0.023,97684.0,97655.0,0.15]
[1732380065454,0.1951,97678.0,97655.0,0.15]
[1732380066343,0.1951,97672.0,97632.0,0.04243879]
[1732380066560,0.1951,97663.0,97633.0,0.15117758]
[1732380066826,0.1951,97658.0,97633.0,0.04916331]
[1732380067045,0.29711427,97658.0,97633.0,0.04916331]
[1732380067274,0.16282199,97670.0,97633.0,0.04916331]
[1732380067275,0.1951,97638.0,97633.0,0.04916331]
[1732380067538,0.0473,97645.0,97606.0,0.0008589]
[1732380067539,0.1951,97634.0,97606.0,0.04214117]
[1732380067794,0.10201427,97633.0,97606.0,0.0008589]
[1732380068047,0.1951,97628.0,97606.0,0.0008589]
[1732380068268,0.2424,97618.0,97606.0,0.0008589]
[1732380068487,0.1951,97611.0,97606.0,0.0008589]
[1732380068739,0.1951,97608.0,97606.0,0.0008589]
[1732380069239,0.17831427,97610.0,97606.0,0.0008589]
[1732380069240,0.07242687,97610.0,97606.0,0.0008589]
[1732380069916,0.0473,97618.0,97606.0,0.0008589]
[1732380070151,0.2,97634.0,97606.0,0.10287317]
[1732380070152,0.0473,97634.0,97606.0,0.10287317]
[1732380070382,0.0473,97634.0,97607.0,0.10201427]
[1732380070825,0.0473,97634.0,97608.0,0.15]
[1732380071045,0.0473,97634.0,97610.0,0.15]
[1732380071262,0.2424,97648.0,97612.0,0.15]
[1732380071507,0.2424,97648.0,97606.0,0.0008589]
[1732380071508,0.1951,97640.0,97614.0,0.15]
[1732380071791,0.1951,97640.0,97615.0,0.10201427]
[1732380072017,0.0473,97648.0,97615.0,0.10201427]
[1732380072018,0.0473,97648.0,97620.0,0.16282199]
[1732380072237,0.0473,97648.0,97606.0,0.0008589]
[1732380072238,0.1951,97644.0,97621.0,0.25201427]
[1732380072694,0.1951,97644.0,97621.0,0.15]
[1732380073142,0.1951,97644.0,97615.0,0.0008585]
[1732380073357,0.1951,97644.0,97617.0,0.15]
[1732380073570,0.1951,97644.0,97618.0,0.10201427]
[1732380074463,0.14915939,97644.0,97618.0,0.10201427]
[1732380074920,0.0473,97648.0,97615.0,0.0008585]
[1732380074921,0.14915939,97640.0,97615.0,0.0008585]
[1732380075149,0.0473,97648.0,97615.0,0.0008585]
[1732380075150,0.14915939,97632.0,97615.0,0.0008585]
[1732380075394,0.0473,97648.0,97615.0,0.0008585]
[1732380075395,0.14915939,97624.0,97615.0,0.0008585]
[1732380075632,0.14915939,97622.0,97615.0,0.0008585]
[1732380075852,0.14915939,97619.0,97615.0,0.0008585]
[1732380076078,0.14931427,97621.0,97590.0,0.09088072]
[1732380076079,0.14915939,97608.0,97590.0,0.09088072]
[1732380076298,0.14915939,97608.0,97566.0,0.18173226]
[1732380076299,0.10201427,97607.0,97566.0,0.18173226]
[1732380076520,0.10201427,97607.0,97560.0,0.22802423]
[1732380076521,0.0763,97606.0,97568.0,0.18173226]
[1732380076793,0.0763,97606.0,97566.0,0.18173226]
[1732380076794,0.14729339,97596.0,97566.0,0.18173226]
[1732380076987,0.0473,97593.0,97563.0,0.18173226]
[1732380077217,0.29660766,97593.0,97563.0,0.10201427]
[1732380077434,0.29613358,97593.0,97563.0,0.10201427]
[1732380077660,0.29613358,97593.0,97560.0,0.16368089]
[1732380077661,0.19411931,97593.0,97564.0,0.10201427]
[1732380077885,0.04682592,97593.0,97564.0,0.10201427]
[1732380078138,0.19411931,97593.0,97565.0,0.15]
[1732380078368,0.19411931,97593.0,97560.0,0.16368089]
[1732380078369,0.19411931,97593.0,97567.0,0.15]
[1732380078597,0.19411931,97593.0,97569.0,0.15]
[1732380078598,0.10201427,97592.0,97569.0,0.15]
[1732380078819,0.10201427,97592.0,97560.0,0.0008589]
[1732380078820,0.2,97572.0,97560.0,0.0008589]
[1732380079042,0.14729339,97574.0,97560.0,0.0008589]
[1732380079281,0.14729339,97576.0,97560.0,0.0008589]
[1732380079532,0.0763,97592.0,97560.0,0.0008589]
[1732380079533,0.14729339,97574.0,97560.0,0.0008589]
[1732380079746,0.14729339,97586.0,97561.0,0.10201427]
[1732380080180,0.17831427,97592.0,97561.0,0.10201427]
[1732380080181,0.0763,97592.0,97561.0,0.10201427]
[1732380080401,0.14729339,97586.0,97562.0,0.15]
[1732380080624,0.14729339,97587.0,97564.0,0.15]
[1732380080843,0.14729339,97586.0,97564.0,0.15]
[1732380081054,0.14729339,97589.0,97564.0,0.15]
[1732380081277,0.14729339,97577.0,97564.0,0.15]
[1732380081490,0.14729339,97577.0,97560.0,0.0008589]
[1732380081491,0.14729339,97573.0,97560.0,0.0008589]
[1732380081707,0.2,97571.0,97560.0,0.0008589]
[1732380081937,0.10201427,97570.0,97560.0,0.0008589]
[1732380082606,0.30201427,97570.0,97560.0,0.0008589]
[1732380083047,0.14729339,97573.0,97560.0,0.0008589]
[1732380083977,0.14729339,97578.0,97560.0,0.0008589]
[1732380084420,0.14729339,97581.0,97560.0,0.0008589]
[1732380084676,0.14729339,97573.0,97560.0,0.0008589]
[1732380086446,0.10201427,97572.0,97560.0,0.0008589]
[1732380087662,0.14729339,97573.0,97560.0,0.0008589]
[1732380088918,0.24930766,97573.0,97560.0,0.0008589]
[1732380089693,0.14729339,97571.0,97538.0,0.02992432]
[1732380089933,0.10201427,97573.0,97540.0,0.15]
[1732380089934,0.14729339,97570.0,97540.0,0.15]
[1732380090167,0.0494,97565.0,97540.0,0.15]
[1732380090447,0.14729339,97561.0,97540.0,0.15]
[1732380091180,0.14729339,97561.0,97510.0,0.25108671]
[1732380091181,0.14729339,97557.0,97510.0,0.25108671]
[1732380091442,0.14729339,97555.0,97526.0,0.15]
[1732380091688,0.24930766,97555.0,97526.0,0.15]
[1732380091929,0.24930766,97555.0,97516.0,0.04164024]
[1732380091930,0.10201427,97554.0,97516.0,0.01780713]
[1732380092169,0.10201427,97554.0,97511.0,0.1539]
[1732380092170,0.10201427,97554.0,97517.0,0.10201427]
[1732380093805,0.10201427,97554.0,97518.0,0.15]
[1732380094032,0.10201427,97554.0,97520.0,0.15]
[1732380094274,0.10201427,97554.0,97521.0,0.15]
[1732380095020,0.24930766,97554.0,97521.0,0.15]
[1732380095022,0.14729339,97552.0,97521.0,0.15]
[1732380095269,0.10201427,97551.0,97521.0,0.15]
[1732380099180,0.14729339,97547.0,97521.0,0.15]
[1732380099460,0.14729339,97547.0,97516.0,0.0008597]
[1732380099461,0.14729339,97534.0,97516.0,0.0008597]
[1732380099716,0.24930766,97533.0,97516.0,0.0008597]
[1732380100249,0.14729339,97528.0,97516.0,0.0008597]
[1732380100522,0.2,97520.0,97516.0,0.0008597]
[1732380100752,0.10201427,97519.0,97516.0,0.0008597]
[1732380101469,0.14729339,97521.0,97516.0,0.0008597]
[1732380103070,0.0494,97528.0,97516.0,0.0008597]
[1732380103071,0.14729339,97522.0,97516.0,0.0008597]
[1732380103304,0.14729339,97521.0,97516.0,0.0008597]
[1732380104989,0.14294574,97521.0,97516.0,0.0008597]
[1732380105939,0.21834574,97546.0,97538.0,0.5478]
[1732380106205,0.21834574,97546.0,97525.0,0.15]
[1732380106459,0.14294574,97542.0,97525.0,0.15]
[1732380106682,0.14294574,97543.0,97525.0,0.15]
[1732380106907,0.21834574,97546.0,97525.0,0.15]
[1732380107125,0.14294574,97542.0,97518.0,0.15]
[1732380107369,0.14294574,97542.0,97516.0,0.04190311]
[1732380107370,0.14294574,97544.0,97520.0,0.15]
[1732380107604,0.0754,97546.0,97520.0,0.15]
[1732380107605,0.14294574,97542.0,97520.0,0.25201427]
[1732380107838,0.14294574,97544.0,97520.0,0.25201427]
[1732380108057,0.14294574,97542.0,97520.0,0.15]
[1732380108289,0.10201427,97541.0,97520.0,0.15]
[1732380108554,0.2,97538.0,97516.0,0.04190311]
[1732380108799,0.2,97536.0,97516.0,0.0008597]
[1732380109046,0.0754,97546.0,97516.0,0.0008597]
[1732380109047,0.14294574,97533.0,97516.0,0.0008597]
[1732380109270,0.15081427,97532.0,97516.0,0.0008597]
[1732380109952,0.15081427,97532.0,97517.0,0.15]
[1732380111156,0.15081427,97532.0,97516.0,0.0008597]
[1732380111603,0.15081427,97532.0,97517.0,0.15]
[1732380112313,0.15081427,97532.0,97516.0,0.0008597]
[1732380113119,0.2,97531.0,97516.0,0.0008597]
[1732380113374,0.10201427,97530.0,97516.0,0.0008597]
[1732380113872,0.10201427,97530.0,97517.0,0.15]
[1732380114642,0.10201427,97530.0,97516.0,0.0008597]
[1732380120842,0.0488,97532.0,97516.0,0.0008597]
[1732380122094,0.0488,97532.0,97516.0,0.1508597]
[1732380122628,0.0488,97532.0,97516.0,0.0008597]
[1732380122858,0.0017194,97542.0,97516.0,0.0008597]
[1732380122859,0.14466514,97542.0,97516.0,0.0008597]
[1732380123091,0.14466514,97542.0,97524.0,0.15]
[1732380123803,0.14466514,97542.0,97521.0,0.15]
[1732380124299,0.0017194,97542.0,97521.0,0.15]
[1732380124529,0.14466514,97542.0,97521.0,0.15]
[1732380125039,0.0017194,97542.0,97521.0,0.15]
[1732380125548,0.14466514,97542.0,97521.0,0.15]
[1732380125801,0.14466514,97542.0,97530.0,0.16291222]
[1732380125802,0.0017194,97542.0,97530.0,0.16291222]
[1732380126031,0.0017194,97542.0,97531.0,0.15]
[1732380126562,0.0017194,97561.0,97558.0,0.4646806]
[1732380126803,0.10201427,97560.0,97531.0,0.15]
[1732380127029,0.14466514,97561.0,97524.0,0.023]
[1732380127276,0.24667941,97561.0,97526.0,0.15]
[1732380127505,0.14294574,97556.0,97528.0,0.15]
[1732380127759,0.10373367,97561.0,97528.0,0.15]
[1732380127760,0.34294574,97554.0,97528.0,0.15]
[1732380128225,0.2,97546.0,97528.0,0.15]
[1732380128226,0.14294574,97542.0,97528.0,0.15]
[1732380128497,0.2,97534.0,97528.0,0.15]
[1732380128741,0.14294574,97542.0,97516.0,0.0008597]
[1732380128976,0.0476,97545.0,97525.0,0.15]
[1732380128977,0.2,97535.0,97525.0,0.15]
[1732380129201,0.30201427,97534.0,97525.0,0.15]
[1732380129446,0.14294574,97529.0,97516.0,0.0008597]
[1732380129667,0.10201427,97528.0,97516.0,0.0008597]
[1732380129893,0.14285674,97517.0,97516.0,0.0008597]
[1732380130117,0.44487101,97517.0,97516.0,0.0008597]
[1732380130851,0.57537101,97517.0,97516.0,0.0008597]
[1732380132774,0.37537101,97517.0,97516.0,0.0008597]
[1732380133024,0.27335674,97517.0,97516.0,0.0008597]
[1732380133291,0.2,97536.0,97516.0,0.0008597]
[1732380133525,0.14457614,97532.0,97516.0,0.0008597]
[1732380133752,0.14457614,97532.0,97521.0,0.13737457]
[1732380134002,0.2,97530.0,97522.0,0.28737457]
[1732380134251,0.10201427,97529.0,97522.0,0.15]
[1732380134481,0.10201427,97529.0,97527.0,0.13737457]
[1732380134740,0.14457614,97532.0,97527.0,0.13743519]
[1732380134977,0.14457614,97532.0,97522.0,0.15]
[1732380134978,0.14457614,97532.0,97526.0,0.15]
[1732380135205,0.30201427,97531.0,97530.0,0.18253451]
[1732380135444,0.30201427,97531.0,97523.0,0.27380176]
[1732380135673,0.2,97529.0,97528.0,0.22913765]
[1732380135978,0.2,97527.0,97523.0,0.18332177]
[1732380136213,0.10201427,97526.0,97522.0,0.15]
[1732380136708,0.2,97517.0,97516.0,0.0008597]
[1732380136971,0.57537101,97517.0,97516.0,0.0008597]
[1732380139810,0.34285674,97509.0,97500.0,0.39990951]
[1732380140053,0.34285674,97501.0,97500.0,0.39990951]
[1732380140274,0.57537101,97501.0,97500.0,0.39990951]
[1732380141211,0.57537101,97501.0,97500.0,0.58331983]
[1732380141457,0.57537101,97501.0,97500.0,0.39990951]
[1732380141920,0.57537101,97501.0,97500.0,0.58319843]
[1732380142204,0.57537101,97501.0,97500.0,0.39990951]
[1732380142436,0.37537101,97501.0,97500.0,0.39990951]
[1732380142667,0.57537101,97501.0,97500.0,0.39990951]
[1732380144736,0.37537101,97501.0,97500.0,0.39990951]
[1732380144937,0.57537101,97501.0,97500.0,0.39990951]
[1732380146211,0.14961427,97501.0,97500.0,0.39990951]
[1732380146507,0.0829,97513.0,97500.0,0.40076911]
[1732380146785,0.2,97526.0,97501.0,0.15]
[1732380147012,0.10201427,97525.0,97501.0,0.15]
[1732380147261,0.14285674,97513.0,97501.0,0.15]
[1732380147780,0.2,97521.0,97501.0,0.15]
[1732380148006,0.14285674,97513.0,97501.0,0.15]
[1732380149448,0.14282274,97513.0,97501.0,0.15]
[1732380149679,0.30201427,97512.0,97501.0,0.14986228]
[1732380150428,0.2,97507.0,97501.0,0.14986228]
[1732380150661,0.10201427,97506.0,97501.0,0.14986228]
[1732380151234,0.046,97511.0,97501.0,0.14986228]
[1732380151470,0.046,97511.0,97500.0,0.24024742]
[1732380151471,0.10201427,97510.0,97500.0,0.24024742]
[1732380153633,0.14282274,97513.0,97500.0,0.24024742]
[1732380153863,0.046,97524.0,97500.0,0.24024742]
[1732380153864,0.14282274,97511.0,97500.0,0.24024742]
[1732380154078,0.14282274,97513.0,97500.0,0.24024742]
[1732380154306,0.14282274,97511.0,97500.0,0.24024742]
[1732380154544,0.10201427,97523.0,97500.0,0.24024742]
[1732380154779,0.14282274,97511.0,97500.0,0.24024742]
[1732380155295,0.14282274,97511.0,97505.0,0.13726503]
[1732380155522,0.14282274,97511.0,97504.0,0.13726503]
[1732380155762,0.24483701,97523.0,97505.0,0.28726503]
[1732380156004,0.14282274,97519.0,97505.0,0.15]
[1732380156800,0.10201427,97518.0,97505.0,0.15]
[1732380157067,0.10201427,97518.0,97501.0,0.15]
[1732380157567,0.14282274,97511.0,97500.0,0.24024742]
[1732380157830,0.10201427,97510.0,97500.0,0.24024742]
[1732380158057,0.2,97502.0,97500.0,0.24024742]
[1732380158282,0.10201427,97501.0,97500.0,0.24024742]
[1732380158520,0.10201427,97501.0,97485.0,0.22877505]
[1732380158993,0.10201427,97501.0,97470.0,0.31689234]
[1732380158994,0.10201427,97501.0,97482.0,0.22877505]
[1732380159462,0.10201427,97501.0,97470.0,0.04236228]
[1732380159463,0.10201427,97501.0,97487.0,0.15]
[1732380159937,0.1213,97500.0,97487.0,0.15]
[1732380160207,0.22331427,97500.0,97487.0,0.15]
[1732380160437,0.2,97494.0,97484.0,0.1508584]
[1732380160672,0.10201427,97493.0,97484.0,0.37963345]
[1732380160912,0.2,97492.0,97484.0,0.22963345]
[1732380161151,0.10201427,97491.0,97484.0,0.22963345]
[1732380161415,0.10201427,97491.0,97488.0,0.22877505]
[1732380161635,0.10201427,97491.0,97484.0,0.0008584]
[1732380162108,0.34282274,97489.0,97484.0,0.0008584]
[1732380162331,0.10201427,97488.0,97484.0,0.0008584]
[1732380163312,0.09701427,97488.0,97484.0,0.0008584]
[1732380164774,0.2,97485.0,97484.0,0.0008584]
[1732380165021,0.44483701,97485.0,97484.0,0.0008584]
[1732380170294,0.14282274,97489.0,97484.0,0.0008584]
[1732380170571,0.14282274,97498.0,97484.0,0.0008584]
[1732380170838,0.046,97500.0,97484.0,0.0008584]
[1732380171122,0.0017192,97529.0,97484.0,0.0008584]
[1732380171123,0.2,97502.0,97484.0,0.0008584]
[1732380171369,0.00172,97488.0,97484.0,0.13811032]
[1732380171617,0.00172,97488.0,97486.0,0.15]
[1732380171998,0.2,97510.0,97488.0,0.01828]
[1732380172151,0.2,97512.0,97488.0,0.01828]
[1732380172393,0.10201427,97511.0,97491.0,0.13716966]
[1732380172617,0.10201427,97511.0,97493.0,0.13716966]
[1732380172859,0.10201427,97511.0,97496.0,0.09146589]
[1732380173087,0.10201427,97511.0,97488.0,0.16828]
[1732380173088,0.14282274,97502.0,97495.0,0.09146589]
[1732380173326,0.14282274,97502.0,97488.0,0.16828]
[1732380173327,0.14282274,97502.0,97497.0,0.09146589]
[1732380173572,0.10201427,97511.0,97488.0,0.3970332]
[1732380173573,0.10201427,97511.0,97501.0,0.09146589]
[1732380173797,0.10201427,97511.0,97502.0,0.09146589]
[1732380173798,0.14282274,97503.0,97502.0,0.09146589]
[1732380174523,0.14282274,97502.0,97500.0,0.13716966]
[1732380174744,0.10201427,97511.0,97500.0,0.13716966]
[1732380174745,0.14282274,97505.0,97500.0,0.13716966]
[1732380174975,0.10201427,97511.0,97503.0,0.09150258]
[1732380175216,0.14282274,97505.0,97504.0,0.09150258]
[1732380175900,0.14282274,97505.0,97503.0,0.09150258]
[1732380176615,0.14282274,97505.0,97502.0,0.09150258]
[1732380176616,0.24483701,97505.0,97502.0,0.09150258]
[1732380176861,0.24483701,97505.0,97498.0,0.09046019]
[1732380176862,0.00044455,97503.0,97498.0,0.09046019]
[1732380177117,0.00044455,97503.0,97488.0,0.16828]
[1732380177118,0.00044455,97503.0,97494.0,0.15]
[1732380177647,0.00044455,97503.0,97494.0,0.33300256]
[1732380177886,0.00044455,97503.0,97499.0,0.18300256]
[1732380178120,0.00044455,97503.0,97488.0,0.01828]
[1732380178121,0.00044455,97503.0,97501.0,0.15]
[1732380178582,0.00044455,97503.0,97502.0,0.27450384]
[1732380178837,0.00044455,97503.0,97502.0,0.15]